Cogmind - Beta 14 @@@ ROGUE MODE // 2024.08.10 @ 20:23:33 Player: star Result: Destroyed by OK-L0I(R) with Subdweller Machine Gun Performance ------------- Evolutions (0) 0 Regions Visited (3) 600 Robots Destroyed (23) 115 Value Destroyed (850) 850 Prototype IDs (12) 240 Alien Tech Used (0) 0 Bonus (0) 0 TOTAL SCORE: 1805 Bonus ------- None Cogmind --------- Core Integrity 0/250 Matter 300/300 Energy 100/100 System Corruption 0% Temperature Cool (0) Movement Treading (260) Ox1 Location -10/Subcaves Parts ------- > --- POWER (1) -------- Subdweller Power Source > --- PROPULSION (2) --- Spiked Treads > --- UTILITY (2) ------ Medium Storage Unit Makeshift Light Armor Plating > --- WEAPON (2) ------- Heavy Assault Rifle > --- INVENTORY (10) --- Arachnoskeleton Large Matter Pod (150) Targeting Computer Shock Absorption System Makeshift System Shield Sensor Drone Bay (19/20) Peak State ------------ > --- POWER ------------ Light Deuterium Engine > --- PROPULSION ------- Light Treads Light Treads > --- UTILITY ---------- Medium Storage Unit Sensor Drone Bay > --- WEAPON ----------- Beamcaster Improved Light Cannon > --- INVENTORY -------- Arachnoskeleton Large Matter Pod Visual Processing Unit Targeting Computer Shock Absorption System Heavy Assault Rifle Rocket Launcher Mini Grenade Launcher [Rating: 24] Favorites ----------- Power Light Deuterium Engine Engine Light Deuterium Engine Propulsion Light Treads Treads Light Treads Wheel Compact Wheel Hover Unit Combat Airjet Utility Small Storage Unit Device Sensor Drone Bay Storage Small Storage Unit Protection Improved Light Armor Plating Weapon Assault Rifle Energy Gun Beamcaster Ballistic Gun Assault Rifle Ballistic Cannon Improved Light Cannon Launcher Rocket Launcher Build | -11 -10 -10 -10 ------- Run | Yrd Mat Min Sub Slots Evolved . | . . . . Power . | . . . . Propulsion . | . . . . Utility . | . . . . Weapon . | . . . . Parts Attached 35 | 11 2 9 13 Power 3 | 2 . . 1 Engine 3 | 2 . . 1 Core . | . . . . Reactor . | . . . . Propulsion 8 | 5 . 1 2 Treads 6 | 3 . 1 2 Leg . | . . . . Wheel 1 | 1 . . . Hover 1 | 1 . . . Flight . | . . . . Utility 10 | 2 . 4 4 Device 2 | . . 1 1 Storage 2 | 1 . 1 . Processor . | . . . . Hackware . | . . . . Protection 6 | 1 . 2 3 Artifact . | . . . . Weapon 14 | 2 2 4 6 Energy Gun 2 | . . 1 1 Energy Cannon . | . . . . Ballistic Gun 5 | 2 1 1 1 Ballistic Cannon 3 | . 1 . 2 Launcher 4 | . . 2 2 Special Weapon . | . . . . Impact Weapon . | . . . . Slashing Weapon . | . . . . Piercing Weapon . | . . . . Special Melee Weapon . | . . . . Unidentified Prototypes 1 | . . 1 . Parts Lost 7 | . 1 . 6 Power 1 | . . . 1 Propulsion 2 | . . . 2 Utility 1 | . 1 . . Weapon 3 | . . . 3 Highest Loss Streak 3 | . 1 . 3 To Critical Strikes 1 | . . . 1 Average Slot Usage (%) 94 | . 98 100 90 Engine 12 | . 14 14 11 Treads 24 | . 28 28 22 Device 6 | . . 8 8 Storage 14 | . 14 14 14 Protection 7 | . 12 5 5 Energy Gun 7 | . . 5 11 Ballistic Gun 8 | . 17 13 2 Ballistic Cannon 9 | . 10 3 11 Launcher 2 | . . 5 2 Peak Build Rating 24 | 12 14 23 24 Average Rating 11 | 5 12 17 20 On Entrance 10 | . 12 11 20 Naked Turns . | . . . . Heaviest Build 38 | 17 19 37 38 Greatest Support 40 | 40 20 40 40 Greatest Overweight (x) 8 | . . 1 8 Average Overweight (x) . | . . . . Largest Inventory Capacity 10 | 8 8 10 10 Average Capacity 7 | 6 8 9 10 Most Carried 10 | 3 8 10 10 Average Carried 4 | 1 5 9 9 Final Capacity 10 | 8 8 10 10 Final Carried 10 | 3 8 10 8 Class Distribution -------------------- 85% | Mutant 9% | Derelict-Mutant 5% | Scavenger-Mutant Dominant Class ---------------- Mutant | -10/Materials Mutant | -10/Mines Mutant | -10/Subcaves Resources | -11 -10 -10 -10 ----------- Run | Yrd Mat Min Sub Matter Collected 1219 | 416 252 125 426 Remotely . | . . . . Salvage Created 727 | 41 317 47 322 Parts 39 | . 13 2 24 Haulers Intercepted 1 | . 1 . . Recyclers Shooed . | . . . . Parts Field Recycled . | . . . . Retrieved Matter . | . . . . Parts Self-Destructed 6 | . . . 6 Prevented . | . . . . Kills | -11 -10 -10 -10 ------- Run | Yrd Mat Min Sub Combat Hostiles Destroyed 25 | 4 9 1 11 Guns 11 | 4 3 . 4 Cannons 11 | . 6 1 4 AOE 3 | . . . 3 Classes Destroyed 6 | 1 3 1 1 Hauler 1 | . 1 . . Operator 1 | . 1 . . Grunt 9 | . 9 . . Sentry 2 | . . 1 1 Subdweller 10 | . . . 10 Assembled 4 | 4 . . . Best Kill Streak 4 | 2 4 1 2 Combat Bots Only 4 | 2 4 1 2 Max Kills in Single Turn 1 | 1 1 1 1 Gunslinging . | . . . . Exploded 1 | . . . 1 Melee . | . . . . Uniques/NPCs Destroyed . | . . . . Combat | -11 -10 -10 -10 -------- Run | Yrd Mat Min Sub Hostile Shots Fired 121 | 20 44 . 57 Missed 31 | 5 11 . 15 Damage Taken 1615 | 210 387 . 1018 Core 257 | . 37 . 220 Absorbed by Shields . | . . . . Core Remaining (%) 100 | 100 . . . Volleys Fired 104 | 19 36 1 48 Largest 2 | 2 2 2 2 Hottest 114 | 40 59 59 114 Shots Fired 208 | 38 72 2 96 Gun 126 | 38 37 1 50 Cannon 74 | . 35 1 38 Launcher 8 | . . . 8 Special . | . . . . Kinetic 159 | 38 72 2 47 Thermal 41 | . . . 41 Explosive 8 | . . . 8 Electromagnetic . | . . . . Robot Hit Streak 10 | 6 10 3 9 Robot Miss Streak 8 | 8 4 . 3 Penetration Max . | . . . . Secondary Targets . | . . . . Shots Hit Robots 115 | 13 50 2 50 Core Hits 46 | 6 20 1 19 Critical Kills . | . . . . Critical Parts Destroyed . | . . . . Critical Strikes 4 | . . . 4 Burn 2 | . . . 2 Blast 2 | . . . 2 Melee Attacks . | . . . . Impact . | . . . . Slashing . | . . . . Piercing . | . . . . Sneak Attacks . | . . . . Combat Hostiles . | . . . . Follow-up Attacks . | . . . . Damage Inflicted 2489 | 166 855 34 1434 Guns 958 | 166 300 12 480 Cannons 996 | . 554 22 420 Explosions 534 | . . . 534 Melee . | . . . . Ramming 1 | . 1 . . Kinetic 1561 | 166 854 34 507 Thermal 393 | . . . 393 Explosive 534 | . . . 534 Electromagnetic . | . . . . Impact . | . . . . Slashing . | . . . . Piercing . | . . . . Highest Corruption . | . . . . Average Corruption . | . . . . Corruption Purged . | . . . . Corruption Blocked . | . . . . Overload Shots . | . . . . Overflow Damage 9 | . 5 . 4 Projectiles 9 | . 5 . 4 Explosions . | . . . . Melee . | . . . . Knockbacks 11 | . 9 . 2 Impact . | . . . . Kinetic 10 | . 8 . 2 Secondary 1 | . 1 . . Self-Inflicted Damage . | . . . . Shots . | . . . . Rammed 2 | . 1 . 1 Targets Rammed 2 | . 1 . 1 Kicked . | . . . . Crushed . | . . . . Highest Temperature 123 | 13 123 9 117 Average Temperature 43 | 9 48 6 35 Received Heat Transfer 341 | 20 213 . 108 Siege Activations . | . . . . Robots Corrupted . | . . . . Combat Hostiles . | . . . . Parts Fried . | . . . . Impact Corruptions . | . . . . Robots Melted . | . . . . Combat Hostiles . | . . . . Parts Melted 2 | . . . 2 Heat Transferred 851 | . . . 851 Parts Sabotaged . | . . . . Parts Stolen . | . . . . Parts Stripped . | . . . . Power Chain Reactions . | . . . . Alert | -11 -10 -10 -10 ------- Run | Yrd Mat Min Sub Peak Influence 275 | . 275 73 . Initial 53 | . . 53 . Average 19 | . 106 38 . Maximum Alert Level 1 | . 1 . . Low Security (%) 96 | 100 74 100 . Level 1 3 | . 25 . . Level 2 . | . . . . Level 3 . | . . . . Level 4 . | . . . . Level 5 . | . . . . High Security . | . . . . Max Security . | . . . . Squads Dispatched 3 | . 3 . . Investigation . | . . . . Extermination . | . . . . Reinforcement 3 | . 3 . . Assault . | . . . . Garrison . | . . . . Intercept . | . . . . Searches Triggered . | . . . . Construction Impeded . | . . . . Haulers Reinforced . | . . . . Active Scanning Responses . | . . . . Cargo Convoy Interrupts . | . . . . Stealth | -11 -10 -10 -10 --------- Run | Yrd Mat Min Sub Distress Signals 1 | . 1 . . Communications Jammed . | . . . . Distress Signals . | . . . . Times Spotted 43 | 7 21 1 14 Peak Tracking Total 5 | 1 5 1 2 Tactical Retreats 5 | 3 . . 2 Traps | -11 -10 -10 -10 ------- Run | Yrd Mat Min Sub Traps Triggered 1 | . . . 1 Indirectly . | . . . . Trap Hack Attempts . | . . . . Triggered . | . . . . Disarmed . | . . . . Reprogrammed . | . . . . Reused . | . . . . Traps Extracted . | . . . . Installed . | . . . . Triggered . | . . . . Machines | -11 -10 -10 -10 ---------- Run | Yrd Mat Min Sub Machines Disabled 2 | . 1 . 1 Max in Single Turn 1 | . 1 . 1 Machines Repaired . | . . . . Machines Dismantled . | . . . . Machines Sabotaged . | . . . . Overloaded Fab Kills . | . . . . Hacking | -11 -10 -10 -10 --------- Run | Yrd Mat Min Sub Machines Accessed 7 | . 5 1 1 Terminals 5 | . 5 . . Fabricators . | . . . . Repair Stations . | . . . . Recycling Units . | . . . . Scanalyzers . | . . . . Garrison Access . | . . . . Total Hacks 25 | . 15 1 9 Successful 19 | . 9 1 9 Failed 6 | . 6 . . Catastrophic . | . . . . Database Lockouts . | . . . . Manual 14 | . 14 . . Terminals 15 | . 15 . . Fabricators . | . . . . Repair Stations . | . . . . Recycling Units . | . . . . Scanalyzers . | . . . . Garrison Access . | . . . . Terminal Hacks 11 | . 1 1 9 Record 8 | . . . 8 Open Door 1 | . . 1 . Terminal Index 1 | . 1 . . Derelict Proto ID Bank 1 | . . . 1 Fabricator Hacks . | . . . . Repair Station Hacks . | . . . . Recycling Unit Hacks . | . . . . Scanalyzer . | . . . . Garrison Access Hacks . | . . . . Unauthorized Hacks 8 | . 8 . . Terminals 8 | . 8 . . Assimilate 1 | . 1 . . Botnet 5 | . 5 . . Skim 2 | . 2 . . Fabricators . | . . . . Repair Stations . | . . . . Recycling Units . | . . . . Scanalyzers . | . . . . Garrison Access . | . . . . Data Cores Recovered . | . . . . Used . | . . . . Hacking Detections 5 | . 5 . . Full Trace Events . | . . . . Feedback Events . | . . . . Feedback Blocked . | . . . . Robot Schematics Acquired . | . . . . Robots Built . | . . . . Authchips . | . . . . Time . | . . . . Total Robot Build Rating . | . . . . Part Schematics Acquired . | . . . . Parts Built . | . . . . Authchips . | . . . . Time . | . . . . Total Part Build Rating . | . . . . Parts Repaired . | . . . . Time . | . . . . Parts Recycled . | . . . . Recycled Matter . | . . . . Retrieved Matter . | . . . . Retrieved Components . | . . . . Parts Scanalyzed . | . . . . Part Schematics Acquired . | . . . . Parts Damaged . | . . . . Bothacking | -11 -10 -10 -10 ------------ Run | Yrd Mat Min Sub Used RIF Installer . | . . . . Robots Hacked . | . . . . Non-combat . | . . . . Combat . | . . . . Robot Hacks Applied . | . . . . Relay Couplers Released . | . . . . Fabnet Peak Effective % . | . . . . Robots Rewired . | . . . . Allies Hacked . | . . . . Hacks Repelled . | . . . . Allies | -11 -10 -10 -10 -------- Run | Yrd Mat Min Sub Total Allies 1 | . 1 . . Largest Group 1 | . 1 1 1 Highest-Rated Group 10 | . 10 10 10 Highest-Rated Ally 10 | . 10 10 10 Total Orders 9 | . 2 3 4 STAY 2 | . 1 . 1 FOLLOW 2 | . 1 . 1 EXPLORE 2 | . . 1 1 RETURN 3 | . . 2 1 Ally Attacks . | . . . . Total Damage . | . . . . Kills . | . . . . Allies Corrupted . | . . . . Allies Melted . | . . . . Intel | -11 -10 -10 -10 ------- Run | Yrd Mat Min Sub Robot Analysis Total . | . . . . Derelict Logs Recovered 1 | . . . 1 Drone Launches 25 | . . 20 5 Drone Recoveries 24 | . . 20 4 Exploration | -11 -10 -10 -10 ------------- Run | Yrd Mat Min Sub Turns Passed 5957 | 3254 578 686 1439 Spaces Moved 1880 | 598 262 364 656 Core 49 | 11 . . 38 Treads 1817 | 573 262 364 618 Legs . | . . . . Wheels 14 | 14 . . . Hover . | . . . . Flight . | . . . . Fastest Speed 50 | 50 160 160 160 Average Speed 170 | 156 160 167 188 Slowest Speed 450 | 160 160 240 450 Overloaded Moves . | . . . . Propulsion Burnouts . | . . . . Robots Hopped . | . . . . Cave-ins Triggered . | . . . . Exploration Rate (%) 63 | 84 42 81 45 Regions Visited 3 Branch Regions 2 Pre-discovered Areas . | . . . . Known Exits Taken . | . . . . Unknown Exits Taken 3 | 1 1 1 . Scrap Searched 15 | . . . 15 Spaces Dug . | . . . . Terrain Destroyed 42 | . 2 . 40 Melee . | . . . . Projectile 2 | . 2 . . AOE 40 | . . . 40 Terrain Rammed . | . . . . Walls Destroyed . | . . . . Machines Disabled . | . . . . Actions | -11 -10 -10 -10 --------- Run | Yrd Mat Min Sub Total 4419 | 2872 347 438 762 Wait 2375 | 2242 43 57 33 Move 1877 | 597 261 363 656 Hop . | . . . . Pick Up 14 | 3 4 4 3 Fast Attach 11 | 7 . 1 3 Attach 2 | . . . 2 Detach . | . . . . Swap 22 | 4 2 8 8 Drop 12 | . . 4 8 Fire 104 | 19 36 1 48 Melee . | . . . . Ram . | . . . . Kick . | . . . . Crush 2 | . 1 . 1 Escape Stasis . | . . . . Rewire . | . . . . Trap . | . . . . Miscellaneous . | . . . . Route ------- -11/Scrapyard -10/Materials (discovered 2 exits: [*Mat] / *Min) -10/Mines (discovered 2 exits: [*Mat] / *Sub) -10/Subcaves History --------- Turn | Location | Event 1447 | -11/Scrapyard | Discovered new exit (range 16) 1551 | -11/Scrapyard | Assembled infested the area 3255 | -11/Scrapyard | Entered Materials 3256 | -10/Materials | Build established: Mutant 3635 | -10/Materials | Discovered new exit (range 14) 3728 | -10/Materials | Discovered new exit (range 16) 3833 | -10/Materials | Entered Mines 3833 | -10/Mines | Accompanied by 1 ally 3908 | -10/Mines | Discovered new exit (range 10) 3962 | -10/Mines | Joined a pair of Derelicts in attacking an 0b10 outpost 4094 | -10/Mines | Found the Drone Emporium 4102 | -10/Mines | Found Prototype Device 4128 | -10/Mines | Identified Sensor Drone Bay 4233 | -10/Mines | Received a Rocket Launcher from a helpful Derelict 4512 | -10/Mines | Discovered new exit (range 5) 4519 | -10/Mines | Entered Subcaves 4519 | -10/Subcaves | Accompanied by 1 ally 4736 | -10/Subcaves | Visited 4L-MR0's lab 4756 | -10/Subcaves | Found Arachnoskeleton 4832 | -10/Subcaves | Shifting Twisted Machinery released Sub. Power Source 4857 | -10/Subcaves | Shifting Twisted Machinery released Sub. Machine Gun 4942 | -10/Subcaves | Learned 2 Materials zone layouts 5420 | -10/Subcaves | Core integrity fell below 50% 5485 | -10/Subcaves | Build established: Derelict-Mutant 5493 | -10/Subcaves | Shifting Twisted Machinery released Sub. Monowheel 5800 | -10/Subcaves | Lost 3 parts (1n2w) 5935 | -10/Subcaves | Disturbed a concealed Subdweller 5943 | -10/Subcaves | Core integrity fell below 20% 5958 | -10/Subcaves | Destroyed by OK-L0I(R) with Subdweller Machine Gun Last Messages --------------- 05919_ Found 37 Matter. 05920_ Acquired 37 matter. 05935_ OK-L0I(R) angrily emerges from the Twisted Machinery. 05936_ OK-L0I(R): "SUBSUB!" 05941_ Searching scrap... 05941_ Found Battle Cannon. 05941_ Found Spk. Treads. 05941_ Found 67 Matter. 05942_ Acquired 28 matter. 05944_ Rocket Launcher destroyed. 05950_ Acquired Spk. Treads. 05951_ Slammed into OK-L0I(R). 05952_ Searching scrap... 05952_ Found Sub. Power Source. 05952_ Found 33 Matter. 05953_ Acquired 6 matter. 05956_ Searching scrap... 05956_ Found Sub. Optics. 05956_ Found Scrap Shield. 05956_ Found 61 Matter. Map ----- +----------------------------------------------------+ | | | | | | | | | | | | | | | | | | | | | | | | | ?????????????????????????????????????????????????? | | ?????????????????????????????????????????????????? | | ?????????????????????????????????????????????????? | | ?????????????????????????????????????????????????? | | ?????????????????????????????????????????????????? | | ?????????????????????????????????????????????????? | | ?????????????????????????????????????????????????? | | ?????????????????????????????????????????????????? | | ?????????????????????????????????????????????????? | | ?????????????????????????????????????????????????? | | ?????????????????????????????????????????????????? | | ?????????????????????????#####???????????????????? | | ????????????????????????##!#*##??????????????????? | | ????????????????????????#@!$]%#??????????????????? | | ????????????????????????##R&###??????????????????? | | ????????????????????????###&%#???????????????????? | | ???????????????????????## #!###??????????????????? | | ???????????????????????# " < #??????????????????? | | ??????????????????????## ###????????????????? | | ??????????????######### ####?????????????? | | ?????????????## ##### #?????????????? | | ?????????##### #??## #?????????????? | | ?????????# ##?# ### #?????????????? | | ?????????# ### ######?????????????? | | ?????????# ## ###???????????????? | | ???????### #???????????????? | | ??????## &! #???????????????? | | ??????# ?## # #### #???????????????? | | ??????? ### && #???##???????????????? | | ??????????# # ! ##????????????????????? | | ???????#???# #?????????????????????? | | ???????# ## #####?????????????????????? | | ???????# #????????????????????????? | | ???????# #####??????????????????????? | | ??? ## #??????????????????????? | | ##??? ???#### #??????????????????????? | | ##???????????## ## #??????????????????????? | | #??????????## #? #?????????????????????? | +----------------------------------------------------+ Best States ------------- Heat Dissipation 25 Energy Generation 15 Energy Capacity 250 Matter Stores 300 Matter Capacity 300 Sight Range 16 Terrain Scan Density 10 Armor Coverage 150 Core Shielding 20 Evasion (%) 50 Recoil Reduction 2 Item Schematics ----------------- None Robot Schematics ------------------ None Fabricated ------------ Nothing Alien Tech Used ----------------- None Achievements -------------- None Challenges ------------ None Game ------ Seed EtherialOmegaRailgun Manual? 0 Play Time 00:26:07 Cumulative 48.8 hours Start 2024.08.10 @ 19:57:51 End 2024.08.10 @ 20:23:33 Sessions 1 Manual Loads 0 Difficulty Rogue Special Mode None Game No. 87 Rogue 87 Adventurer 0 Explorer 0 Win Type - Total 0 Types 0/0/0/0/0/0/0/0/0 Lore% 21 Gallery% 42 Achievement% 34 Wizard Run 0 Options --------- Layout 0 ASCII 0 Keyboard 0 Movement Mouse Keybinds 0 Fullscreen 1 Font 18/SmallcapsGlow Map View 76x50 Zoom Use 0% Tactical HUD 1 Map Filters NONE Filters NONE Steam 1 RUN: e9d6bee0-2d84-4832-a0fb-166d527a44f1